fUST/lending_fUST_20250522
["ID","MTS","AMOUNT","RATE_DAILY","PERIOD"]
[361875976,1747861833188,-430.0,0.00023561,2]
[361875977,1747861833198,-430.0,0.00023561,2]
[361875978,1747861833208,-430.0,0.00023561,2]
[361875979,1747861833222,-430.0,0.00023561,2]
[361875980,1747861833231,-500.0,0.00023561,2]
[361875982,1747861833242,-430.0,0.00023561,2]
[361875984,1747861833252,-742.0,0.00023561,2]
[361875986,1747861833264,-430.0,0.00023561,2]
[361875988,1747861833273,-295.35851554,0.00023693,9]
[361875990,1747861833283,-200.0,0.00023751,2]
[361875992,1747861833293,-707.48,0.00023753,2]
[361875993,1747861833304,-5000.0,0.00023754,2]
[361875996,1747861833314,-295.35851554,0.00023831,10]
[361875998,1747861833324,-500.0,0.00023834,2]
[361876000,1747861833334,-430.0,0.00023834,2]
[361876001,1747861833344,-155.06,0.00023834,2]
[361876003,1747861833354,-430.0,0.00023834,2]
[361876005,1747861833364,-430.0,0.00023834,2]
[361876007,1747861833373,-430.25,0.00023834,2]
[361876009,1747861833383,-566.86,0.00023834,2]
[361876011,1747861833393,-430.0,0.00023834,2]
[361876013,1747861833402,-534.06,0.00023834,2]
[361876015,1747861833412,-212.8,0.00023834,2]
[361876017,1747861833422,-434.5,0.00023834,2]
[361876019,1747861833432,-227.68,0.00023834,2]
[361876021,1747861833442,-430.0,0.00023835,2]
[361876023,1747861833452,-430.0,0.00023835,2]
[361876025,1747861833461,-404.68,0.00023835,2]
[361876027,1747861833471,-219.53,0.00023835,2]
[361876029,1747861833482,-430.0,0.00023835,2]
[361876031,1747861833492,-742.0,0.00023835,2]
[361876049,1747861833665,-430.0,0.00023835,2]
[361876051,1747861833676,-151.0,0.00023892,2]
[361876053,1747861833687,-207.4,0.00023892,2]
[361876055,1747861833698,-295.35851554,0.00023969,10]
[361876056,1747861833709,-707.48,0.00023999,2]
[361876058,1747861833720,-707.48,0.00023999,2]
[361876059,1747861833731,-707.48,0.00023999,2]
[361876061,1747861833741,-707.48,0.00023999,2]
[361876062,1747861833752,-707.5880297,0.00023999,2]
[361876063,1747861833762,-13868.0,0.00024,3]
[361876064,1747861833772,-422.71322487,0.00024,3]
[361876065,1747861833782,-176.0309214,0.00024027,2]
[361876066,1747861833792,-159.9797383,0.00024027,2]
[361876067,1747861833802,-295.35851554,0.00024107,10]
[361876068,1747861833812,-500.0,0.00024108,2]
[361876069,1747861833823,-430.0,0.00024108,2]
[361876070,1747861833832,-430.0,0.00024108,2]
[361876071,1747861833843,-430.0,0.00024108,2]
[361876072,1747861833853,-430.0,0.00024108,2]
[361876073,1747861833863,-430.0,0.00024109,2]
[361876074,1747861833873,-430.0,0.00024109,2]
[361876075,1747861833884,-500.0,0.00024109,2]
[361876076,1747861833894,-430.0,0.00024109,2]
[361876077,1747861833904,-742.0,0.00024109,2]
[361876078,1747861833915,-430.0,0.00024109,2]
[361876079,1747861833925,-2174.0,0.0002417,120]
[361876080,1747861833936,-2174.0,0.0002418,120]
[361876081,1747861833947,-2174.0,0.0002419,120]
[361876082,1747861833957,-295.35851554,0.00024245,10]
[361876083,1747861833967,-500.0,0.00024382,2]
[361876084,1747861833977,-430.0,0.00024382,2]
[361876085,1747861833987,-430.0,0.00024382,2]
[361876086,1747861833997,-185.86,0.00024382,2]
[361876087,1747861834007,-275.67,0.00024382,2]
[361876088,1747861834029,-295.35851554,0.00024383,11]
[361876089,1747861834042,-430.0,0.00024383,2]
[361876090,1747861834053,-430.0,0.00024383,2]
[361876091,1747861834064,-430.0,0.00024383,2]
[361876092,1747861834074,-742.0,0.00024383,2]
[361876093,1747861834086,-430.0,0.00024383,2]
[361876094,1747861834096,-295.35851554,0.00024521,11]
[361876095,1747861834107,-419.44942376,0.00024656,2]
[361876096,1747861834117,-297.13,0.00024656,2]
[361876097,1747861834128,-430.0,0.00024656,2]
[361876098,1747861834138,-430.0,0.00024657,2]
[361876099,1747861834149,-430.0,0.00024657,2]
[361876100,1747861834160,-500.0,0.00024657,2]
[361876101,1747861834170,-430.0,0.00024657,2]
[361876102,1747861834180,-742.0,0.00024657,2]
[361876103,1747861834190,-430.0,0.00024657,2]
[361876104,1747861834200,-295.35851554,0.00024659,11]
[361876105,1747861834211,-518.91,0.000247,2]
[361876106,1747861834221,-295.35851554,0.00024797,11]
[361876107,1747861834231,-2174.0,0.0002482,120]
[361876108,1747861834241,-2174.0,0.0002483,120]
[361876109,1747861834254,-764.94801186,0.0002483,2]
[361876110,1747861834266,-2174.0,0.0002484,120]
[361876111,1747861834276,-644.9254173,0.00024849,2]
[361876112,1747861834287,-500.0,0.00024873,2]
[361876113,1747861834299,-500.0,0.00024873,2]
[361876114,1747861834312,-501.08412304,0.00024873,2]
[361876115,1747861834323,-201.4468235,0.00024878,2]
[361876116,1747861834336,-321.8536889,0.00024878,2]
[361876117,1747861834348,-154.2938119,0.00024878,2]
[361876118,1747861834359,-568613.227842,0.000249,2]
[361876119,1747861834371,-430.0,0.0002493,2]
[361876120,1747861834382,-430.0,0.0002493,2]
[361876121,1747861834392,-430.0,0.00024931,2]
[361876122,1747861834402,-430.0,0.00024931,2]
[361876123,1747861834411,-430.0,0.00024931,2]
[361876124,1747861834422,-742.0,0.00024931,2]
[361876125,1747861834432,-430.0,0.00024931,2]
[361876126,1747861834442,-295.35851554,0.00024934,12]
[361876127,1747861834451,-764.94801183,0.00024998,2]
[361876128,1747861834461,-151.766,0.00025017,2]
[361876129,1747861834471,-960.0,0.00025017,2]
[361876130,1747861834482,-295.35851554,0.00025072,12]
[361876131,1747861834491,-365.1296499,0.00025117,2]
[361876132,1747861834505,-363.5769684,0.00025117,2]
[361876133,1747861834515,-721.1718145,0.00025117,2]
[361876134,1747861834525,-363.5769684,0.00025117,2]
[361876135,1747861834535,-764.94801183,0.00025165,2]
[361876136,1747861834545,-430.0,0.00025204,2]
[361876137,1747861834555,-272.16,0.00025204,2]
[361876138,1747861834564,-430.0,0.00025205,2]
[361876139,1747861834574,-430.0,0.00025205,2]
[361876140,1747861834584,-543.21913824,0.00025205,30]
[361876141,1747861834594,-430.0,0.00025205,2]
[361876142,1747861834603,-742.0,0.00025205,2]
[361876143,1747861834613,-430.0,0.00025205,2]
[361876144,1747861834623,-295.35851554,0.0002521,12]
[361876145,1747861834633,-151.0,0.00025261,2]
[361876146,1747861834648,-215.0738,0.00025261,2]
[361876147,1747861834658,-263.0,0.0002527,2]
[361876148,1747861834668,-355.0258361,0.00025288,2]
[361876149,1747861834678,-161.133461,0.00025288,4]
[361876150,1747861834688,-764.94801183,0.00025333,2]
[361876151,1747861834698,-295.35851554,0.00025348,13]
[361876152,1747861834708,-1015.38770859,0.00025421,2]
[361876153,1747861834718,-430.0,0.00025478,2]
[361876154,1747861834729,-430.0,0.00025479,2]
[361876155,1747861834739,-159.12928168,0.00025479,2]
[361876156,1747861835478,340.0,0.00021917,2]
[361876172,1747861837744,-430.0,0.00023013,2]
[361876173,1747861837755,-430.0,0.00023287,2]
[361876174,1747861837765,-430.0,0.00023561,2]
[361876175,1747861837774,-430.0,0.00023835,2]
[361876176,1747861837784,-430.0,0.00024109,2]
[361876177,1747861837794,-430.0,0.00024383,2]
[361876178,1747861837806,-481.04,0.00024657,2]
[361876179,1747861837815,-500.0,0.00024899,2]
[361876180,1747861837824,-500.0,0.00024899,2]
[361876182,1747861837834,-191.65329223,0.00024899,2]
[361876183,1747861837843,-500.0,0.00024899,2]
[361876185,1747861837854,-280.7469739,0.00024899,2]
[361876186,1747861837864,-358.53558585,0.00024899,2]
[361876187,1747861837874,-500.0,0.00024899,2]
[361876188,1747861837884,-500.0,0.00024899,2]
[361876189,1747861837894,-500.0,0.00024899,2]
[361876191,1747861837904,-500.0,0.00024899,2]
[361876192,1747861837913,-500.0,0.00024899,2]
[361876193,1747861837923,-500.0,0.00024899,2]
[361876194,1747861837932,-241.28709279,0.00024899,2]
[361876195,1747861837944,-53.90333736,0.00024899,2]
[361876196,1747861838283,-446.09666264,0.00024899,2]
[361876197,1747861838293,-500.0,0.00024899,2]
[361876198,1747861838304,-9.33026655,0.00024899,2]
[361876199,1747861838457,-490.66973345,0.00024899,2]
[361876200,1747861838468,-270.87071832,0.00025479,2]
[361876201,1747861838478,-82.65037197,0.00025479,2]
[361876202,1747861838490,-347.34962803,0.00025479,2]
[361876203,1747861838500,-742.0,0.00025479,2]
[361876204,1747861838510,-430.0,0.00025479,2]
[361876205,1747861838520,-295.35851554,0.00025486,13]
[361876206,1747861838529,-461.41,0.000255,31]
[361876207,1747861838539,-461.41,0.000255,31]
[361876208,1747861838549,-461.41,0.000255,31]
[361876209,1747861838559,-461.41,0.000255,31]
[361876210,1747861838569,-461.41,0.000255,31]
[361876211,1747861838578,-461.41,0.000255,31]
[361876212,1747861838588,-461.41,0.000255,31]
[361876213,1747861838599,-461.41,0.000255,31]
[361876214,1747861838609,-338.15960058,0.000255,31]
[361876215,1747861838622,-123.25039942,0.000255,31]
[361876216,1747861838632,-344.88017389,0.000255,31]
[361876217,1747861838645,-116.52982611,0.000255,31]
[361876218,1747861838655,-461.41,0.000255,31]
[361876219,1747861838665,-461.41,0.000255,31]
[361876220,1747861838674,-461.41,0.000255,31]
[361876221,1747861838684,-461.41,0.000255,31]
[361876222,1747861838693,-461.41,0.000255,31]
[361876223,1747861838703,-461.41,0.000255,31]
[361876224,1747861838713,-726.33301407,0.000255,2]
[361876225,1747861838726,-38.61499776,0.000255,2]
[361876226,1747861838736,-232.78500224,0.00025536,2]
[361876227,1747861838748,-189.92822263,0.00025536,2]
[361876228,1747861838758,-160.0,0.00025536,2]
[361876229,1747861838768,-194.5,0.0002557,120]
[361876230,1747861838778,-694.25,0.00025576,7]
[361876231,1747861838788,-2174.0,0.00025579,120]
[361876232,1747861838798,-150.5,0.0002558,120]
[361876233,1747861838809,-2174.0,0.00025589,120]
[361876234,1747861838819,-2335.47410257,0.000256,7]
[361876247,1747861840124,-834.40444356,0.000256,7]
[361876249,1747861840135,-466.82199935,0.000256,7]
[361876263,1747861842955,-10832.58047596,0.000256,7]
[361876270,1747861843011,-4924.79999392,0.000256,7]
[361876276,1747861843069,-3116.89600137,0.000256,7]
[361876553,1747861845922,-26240.0,0.000256,7]
[361876559,1747861845979,-454543.87298327,0.000256,7]
[361876562,1747861845989,-7134.4,0.000256,7]
[361876564,1747861845998,-2000.0,0.000256,2]
[361876566,1747861846009,-18913.78,0.000256,2]
[361876567,1747861846019,-151.0,0.000256,2]
[361876569,1747861846028,-1000.0,0.00025677,2]
[361876571,1747861846038,-150.0,0.000257,5]
[361876573,1747861846048,-1957.037771,0.000257,5]
[361876575,1747861846057,-500.0,0.000257,9]
[361876578,1747861846066,-719.0,0.00025716,3]
[361876581,1747861846076,-719.0,0.00025716,3]
[361876583,1747861846085,-719.0,0.00025716,3]
[361876585,1747861846095,-643.0,0.00025716,3]
[361876587,1747861846105,-160.75526,0.00025742,30]
[361876589,1747861846114,-430.0,0.00025752,2]
[361876591,1747861846124,-430.0,0.00025753,2]
[361876594,1747861846134,-62.78511696,0.00025753,2]
[361876596,1747861846145,-367.21488304,0.00025753,2]
[361876598,1747861846154,-430.0,0.00025753,2]
[361876600,1747861846163,-742.0,0.00025753,2]
[361876602,1747861846173,-430.0,0.00025753,2]
[361876604,1747861846182,-1255.89166505,0.00025753,2]
[361876606,1747861846194,-2123.13662808,0.00025753,2]
[361876772,1747861848300,430.0,0.00021917,2]
[361876798,1747861848547,430.0,0.00022191,2]
[361876805,1747861848608,430.0,0.00021917,2]
[361877430,1747861855192,430.0,0.00021917,2]
[361877574,1747861857165,430.0,0.00021917,2]
[361877769,1747861859097,5000.0,0.0002224,2]
[361878073,1747861862369,401.78527147,0.00021917,2]
[361878169,1747861863306,432.15,0.00021917,2]
[361878928,1747861873534,430.0,0.00021917,2]
[361879357,1747861878845,430.0,0.00021917,2]
[361879368,1747861880810,430.0,0.00021917,2]
[361879369,1747861893242,430.0,0.00021917,2]
[361879370,1747861893492,430.0,0.00022191,2]
[361879371,1747861910584,430.0,0.00021917,2]
[361879372,1747861921726,430.0,0.00021917,2]
[361879376,1747861930051,430.0,0.00021917,2]
[361879382,1747862415965,162.339935,0.00013699,2]
[361879385,1747862540875,1279.01,0.000151,2]
[361879394,1747862732145,-768.42529264,0.00018356,2]
[361879395,1747862732170,-30.49195736,0.00018356,10]
[361879409,1747862825087,-287.17051902,0.00018356,10]
[361879410,1747862825110,-982.87314985,0.00019178,2]
[361879411,1747862826144,-296.12685015,0.00019178,2]
[361879412,1747862826180,-505.811542,0.0002095,2]
[361879413,1747862826218,-1200.0,0.00021355,2]
[361879414,1747862826255,-300.0,0.00021355,2]
[361879415,1747862826292,-300.0,0.00021355,2]
[361879416,1747862826327,-500.0,0.00021356,2]
[361879417,1747862826362,-500.0,0.00021356,2]
[361879418,1747862826397,-500.0,0.00021356,2]
[361879419,1747862826432,-500.0,0.00021356,2]
[361879420,1747862826466,-500.0,0.00021356,2]
[361879421,1747862826502,-500.0,0.00021356,2]
[361879422,1747862826537,-162.339935,0.00021404,2]
[361879423,1747862826571,-200.0,0.000219,2]
[361879424,1747862826604,-200.157,0.000219,3]
[361879425,1747862826645,-500.0,0.00021916,2]
[361879426,1747862826687,-500.0,0.00021916,2]
[361879427,1747862826729,-19.65128216,0.00021916,2]
[361879428,1747862843087,-480.34871784,0.00021916,2]
[361879429,1747862843114,-500.0,0.00021916,2]
[361879430,1747862843141,-500.0,0.00021916,2]
[361879431,1747862843173,-500.0,0.00021916,2]
[361879432,1747862843201,-500.0,0.00021916,2]
[361879433,1747862843228,-500.0,0.00021916,2]
[361879434,1747862843256,-500.0,0.00021916,2]
[361879435,1747862843283,-500.0,0.00021916,2]
[361879436,1747862843460,-500.0,0.00021916,2]
[361879437,1747862843489,-500.0,0.00021916,2]
[361879438,1747862843518,-500.0,0.00021916,2]
[361879439,1747862843546,-500.0,0.00021916,2]
[361879440,1747862843574,-428.09130516,0.00021916,2]
[361879441,1747862843603,-500.0,0.00021916,2]
[361879442,1747862843631,-500.0,0.00021916,2]
[361879443,1747862843660,-500.0,0.00021916,2]
[361879444,1747862843689,-500.0,0.00021916,2]
[361879445,1747862843714,-500.0,0.00021916,2]
[361879446,1747862843741,-500.0,0.00021916,2]
[361879447,1747862843767,-500.0,0.00021916,2]
[361879448,1747862843793,-500.0,0.00021916,2]
[361879449,1747862843819,-500.0,0.00021916,2]
[361879450,1747862843844,-500.0,0.00021916,2]
[361879451,1747862843869,-500.0,0.00021916,2]
[361879452,1747862843895,-500.0,0.00021916,2]
[361879453,1747862843923,-500.0,0.00021916,2]
[361879454,1747862843948,-500.0,0.00021916,2]
[361879455,1747862843975,-500.0,0.00021916,2]
[361879456,1747862843999,-500.0,0.00021916,2]
[361879457,1747862844025,-500.0,0.00021916,2]
[361879458,1747862844051,-500.0,0.00021916,2]
[361879459,1747862844077,-500.0,0.00021916,2]
[361879460,1747862844103,-500.0,0.00021916,2]
[361879461,1747862844128,-500.0,0.00021916,2]
[361879462,1747862844154,-500.0,0.00021916,2]
[361879463,1747862844180,-500.0,0.00021916,2]
[361879464,1747862844207,-500.0,0.00021916,2]
[361879465,1747862844233,-500.0,0.00021916,2]
[361879466,1747862844259,-293.60578304,0.00021916,2]
[361879467,1747862844283,-500.0,0.00021916,2]
[361879468,1747862844305,-500.0,0.00021916,2]
[361879469,1747862844327,-404.56640388,0.00021916,2]
[361879470,1747862844350,-500.0,0.00021916,2]
[361879471,1747862844372,-500.0,0.00021916,2]
[361879472,1747862844395,-500.0,0.00021916,2]
[361879473,1747862844418,-500.0,0.00021916,2]
[361879474,1747862844441,-419.57343788,0.00021916,2]
[361879475,1747862844463,-430.0,0.00021917,2]
[361879476,1747862844484,-430.0,0.00021917,2]
[361879477,1747862844506,-430.0,0.00021917,2]
[361879478,1747862844527,-430.0,0.00021917,2]
[361879479,1747862844548,-430.0,0.00021917,2]
[361879480,1747862844569,-430.0,0.00021917,2]
[361879481,1747862844591,-200.0,0.00021917,2]
[361879482,1747862844615,-430.0,0.00021917,2]
[361879483,1747862844637,-430.0,0.00021917,2]
[361879484,1747862844660,-430.0,0.00021917,2]
[361879485,1747862844684,-430.0,0.00021917,2]
[361879486,1747862844705,-430.0,0.00021917,2]
[361879487,1747862844727,-450.0,0.00021917,2]
[361879488,1747862844749,-430.0,0.00021917,2]
[361879489,1747862844771,-450.0,0.00021917,2]
[361879490,1747862844793,-518.33,0.00021917,2]
[361879491,1747862844815,-430.0,0.00021917,2]
[361879492,1747862844836,-430.0,0.00021917,2]
[361879493,1747862844858,-430.0,0.00021917,2]
[361879494,1747862844882,-430.0,0.00021917,2]
[361879495,1747862844909,-430.0,0.00021917,2]
[361879496,1747862844940,-400.0,0.00021917,2]
[361879497,1747862844969,-430.0,0.00021917,2]
[361879498,1747862845015,-430.0,0.00021917,2]
[361879499,1747862845050,-430.0,0.00021917,2]
[361879500,1747862845080,-430.0,0.00021917,2]
[361879501,1747862845111,-430.0,0.00021917,2]
[361879502,1747862845143,-450.0,0.00021917,2]
[361879503,1747862845174,-430.0,0.00021917,2]
[361879504,1747862845203,-430.0,0.00021917,2]
[361879505,1747862845237,-430.0,0.00021917,2]
[361879506,1747862845273,-430.0,0.00021917,2]
[361879507,1747862845305,-450.0,0.00021917,2]
[361879508,1747862845332,-430.0,0.00021917,2]
[361879509,1747862845357,-450.0,0.00021917,2]
[361879510,1747862845385,-430.0,0.00021917,2]
[361879511,1747862845413,-430.0,0.00021917,2]
[361879512,1747862845443,-430.0,0.00021917,2]
[361879513,1747862845472,-450.0,0.00021917,2]
[361879514,1747862845503,-430.0,0.00021917,2]
[361879515,1747862845535,-430.0,0.00021917,2]
[361879516,1747862845560,-430.0,0.00021917,2]
[361879517,1747862845583,-430.0,0.00021917,2]
[361879518,1747862845614,-430.0,0.00021917,2]
[361879519,1747862845646,-430.0,0.00021917,2]
[361879520,1747862845673,-430.0,0.00021917,2]
[361879521,1747862845700,-483.43,0.00021917,2]
[361879522,1747862845728,-430.0,0.00021917,2]
[361879523,1747862845754,-430.0,0.00021917,2]
[361879524,1747862845779,-430.0,0.00021917,2]
[361879525,1747862845806,-430.0,0.00021917,2]
[361879526,1747862845833,-430.0,0.00021917,2]
[361879527,1747862845862,-400.0,0.00021917,2]
[361879528,1747862845889,-430.0,0.00021917,2]
[361879529,1747862845915,-430.0,0.00021917,2]
[361879530,1747862845942,-430.0,0.00021917,2]
[361879531,1747862845967,-430.0,0.00021917,2]
[361879532,1747862845993,-430.0,0.00021917,2]
[361879533,1747862846019,-430.0,0.00021917,2]
[361879534,1747862846047,-430.0,0.00021917,2]
[361879535,1747862846073,-430.0,0.00021917,2]
[361879536,1747862846097,-430.0,0.00021917,2]
[361879537,1747862846122,-430.0,0.00021917,2]
[361879538,1747862846147,-430.0,0.00021917,2]
[361879539,1747862846175,-400.0,0.00021917,2]
[361879540,1747862846205,-430.0,0.00021917,2]
[361879541,1747862846232,-430.0,0.00021917,2]
[361879542,1747862846258,-430.0,0.00021917,2]
[361879543,1747862846285,-430.0,0.00021917,2]
[361879544,1747862846310,-400.0,0.00021917,2]
[361879545,1747862846337,-430.0,0.00021917,2]
[361879546,1747862846364,-400.53216153,0.00021917,2]
[361879547,1747862846390,-430.0,0.00021917,2]
[361879548,1747862846416,-450.0,0.00021917,2]
[361879549,1747862846442,-430.0,0.00021917,2]
[361879550,1747862846469,-430.0,0.00021917,2]
[361879551,1747862846495,-430.0,0.00021917,2]
[361879552,1747862846521,-400.0,0.00021917,2]
[361879553,1747862846546,-430.0,0.00021917,2]
[361879554,1747862846740,-430.0,0.00021917,2]
[361879555,1747862846762,-470.26513626,0.00021917,2]
[361879556,1747862846784,-430.0,0.00021917,2]
[361879557,1747862846808,-430.0,0.00021917,2]
[361879558,1747862846830,-450.0,0.00021917,2]
[361879559,1747862846850,-430.0,0.00021917,2]
[361879560,1747862846872,-430.0,0.00021917,2]
[361879561,1747862846893,-430.0,0.00021917,2]
[361879562,1747862846916,-430.0,0.00021917,2]
[361879563,1747862846937,-400.0,0.00021917,2]
[361879564,1747862846958,-430.0,0.00021917,2]
[361879565,1747862846979,-430.0,0.00021917,2]
[361879566,1747862847000,-430.0,0.00021917,2]
[361879567,1747862847024,-430.0,0.00021917,2]
[361879568,1747862847045,-430.0,0.00021917,2]
[361879569,1747862847066,-430.0,0.00021917,2]
[361879570,1747862847087,-430.0,0.00021917,2]
[361879571,1747862847108,-200.0,0.00021917,2]
[361879572,1747862847128,-450.0,0.00021917,2]
[361879573,1747862847149,-430.0,0.00021917,2]
[361879574,1747862847171,-430.0,0.00021917,2]
[361879575,1747862847194,-164.74913287,0.00021917,2]
[361879576,1747862847216,-430.0,0.00021917,2]
[361879577,1747862847238,-400.0,0.00021917,2]
[361879578,1747862847260,-430.0,0.00021917,2]
[361879579,1747862847282,-430.0,0.00021917,2]
[361879580,1747862847303,-430.0,0.00021917,2]
[361879581,1747862847325,-400.0,0.00021917,2]
[361879582,1747862847346,-430.0,0.00021917,2]
[361879583,1747862847367,-430.0,0.00021917,2]
[361879584,1747862847389,-430.0,0.00021917,2]
[361879585,1747862847412,-430.0,0.00021917,2]
[361879586,1747862847435,-430.0,0.00021917,2]
[361879587,1747862847458,-430.0,0.00021917,2]
[361879588,1747862847479,-430.0,0.00021917,2]
[361879589,1747862847502,-430.0,0.00021917,2]
[361879590,1747862847524,-430.0,0.00021917,2]
[361879591,1747862847546,-430.0,0.00021917,2]
[361879592,1747862847566,-430.0,0.00021917,2]
[361879593,1747862847587,-450.0,0.00021917,2]
[361879594,1747862847612,-430.0,0.00021917,2]
[361879595,1747862847633,-430.0,0.00021917,2]
[361879596,1747862847656,-430.0,0.00021917,2]
[361879597,1747862847678,-430.0,0.00021917,2]
[361879598,1747862847699,-450.0,0.00021917,2]
[361879599,1747862847722,-400.0,0.00021917,2]
[361879600,1747862847745,-430.0,0.00021917,2]
[361879601,1747862847766,-430.0,0.00021917,2]
[361879602,1747862847788,-430.0,0.00021917,2]
[361879603,1747862847810,-430.0,0.00021917,2]
[361879604,1747862847831,-430.0,0.00021917,2]
[361879605,1747862847853,-430.0,0.00021917,2]
[361879606,1747862847875,-287.93113158,0.00021917,2]
[361879607,1747862847898,-430.0,0.00021917,2]
[361879608,1747862847919,-430.0,0.00021917,2]
[361879609,1747862847941,-430.0,0.00021917,2]
[361879610,1747862847963,-430.0,0.00021917,2]
[361879611,1747862847985,-430.0,0.00021917,2]
[361879612,1747862848008,-400.0,0.00021917,2]
[361879613,1747862848030,-450.0,0.00021917,2]
[361879614,1747862848052,-430.0,0.00021917,2]
[361879615,1747862848075,-430.0,0.00021917,2]
[361879616,1747862848097,-430.0,0.00021917,2]
[361879617,1747862848120,-430.0,0.00021917,2]
[361879618,1747862848143,-430.0,0.00021917,2]
[361879619,1747862848166,-430.0,0.00021917,2]
[361879620,1747862848189,-430.0,0.00021917,2]
[361879621,1747862848212,-430.0,0.00021917,2]
[361879622,1747862848234,-430.0,0.00021917,2]
[361879623,1747862848257,-430.0,0.00021917,2]
[361879624,1747862848280,-430.0,0.00021917,2]
[361879625,1747862848302,-430.0,0.00021917,2]
[361879626,1747862848324,-430.0,0.00021917,2]
[361879627,1747862848346,-430.0,0.00021917,2]
[361879628,1747862848368,-430.0,0.00021917,2]
[361879629,1747862848389,-495.31940556,0.00021917,2]
[361879630,1747862848411,-430.0,0.00021917,2]
[361879631,1747862848433,-430.0,0.00021917,2]
[361879632,1747862848456,-430.0,0.00021917,2]
[361879633,1747862848478,-430.0,0.00021917,2]
[361879634,1747862848501,-430.0,0.00021917,2]
[361879635,1747862848528,-430.0,0.00021917,2]
[361879636,1747862848551,-430.0,0.00021917,2]
[361879637,1747862848573,-430.0,0.00021917,2]
[361879638,1747862848599,-430.0,0.00021917,2]
[361879639,1747862848621,-430.0,0.00021917,2]
[361879640,1747862848644,-430.0,0.00021917,2]
[361879641,1747862848667,-430.0,0.00021917,2]
[361879642,1747862848692,-430.0,0.00021917,2]
[361879643,1747862848715,-400.0,0.00021917,2]
[361879644,1747862848739,-430.0,0.00021917,2]
[361879645,1747862848763,-430.0,0.00021917,2]
[361879646,1747862848787,-430.0,0.00021917,2]
[361879647,1747862848810,-430.0,0.00021917,2]
[361879648,1747862848833,-430.0,0.00021917,2]
[361879649,1747862848856,-430.0,0.00021917,2]
[361879650,1747862849086,-400.0,0.00021917,2]
[361879651,1747862849111,-430.0,0.00021917,2]
[361879652,1747862849136,-430.0,0.00021917,2]
[361879653,1747862849158,-430.0,0.00021917,2]
[361879654,1747862849181,-400.0,0.00021917,2]
[361879655,1747862849203,-320.0,0.00021917,2]
[361879656,1747862849227,-365.69398668,0.00021917,2]
[361879667,1747862947082,-666.66598735,0.0001573,2]
[361879668,1747862947104,-1800.95336635,0.00019,2]
[361879669,1747862949173,-26000.40359335,0.00019,2]
[361879670,1747862949202,-737.01367193,0.00019817,2]
[361879673,1747862956158,-64.30601332,0.00021917,2]
[361879674,1747862956193,-430.0,0.00021917,2]
[361879675,1747862956229,-430.0,0.00021917,2]
[361879676,1747862956263,-430.0,0.00021917,2]
[361879677,1747862956300,-450.0,0.00021917,2]